bitfinex/quotes_SOLUSD_20240625
["timestamp","ask_amount","ask_price","bid_price","bid_amount"]
[1719330982070,27.48117021,139.72,139.71,14.892609]
[1719330982362,107.48117021,139.72,139.71,14.892609]
[1719330982651,7.1556,139.75,139.71,14.892609]
[1719330982862,27.1557,139.75,139.71,14.892609]
[1719330983064,27.48611052,139.75,139.71,14.892609]
[1719330983260,100.0,139.74,139.71,14.892609]
[1719330983443,20.0,139.73,139.71,14.892609]
[1719330983954,0.34,139.72,139.71,14.892609]
[1719330984759,0.17,139.72,139.71,14.892609]
[1719330985436,7.48611052,139.75,139.71,14.892609]
[1719330986037,100.0,139.74,139.71,14.892609]
[1719330986237,7.1568,139.73,139.71,14.892609]
[1719330986846,0.34,139.72,139.71,14.892609]
[1719330987045,100.34,139.72,139.71,14.892609]
[1719330987251,107.4971,139.72,139.71,14.892609]
[1719330987450,127.4971,139.72,139.71,14.892609]
[1719330988271,172.4971,139.72,139.71,14.892609]
[1719330988559,127.4971,139.72,139.71,14.892609]
[1719330989142,120.34,139.72,139.71,14.892609]
[1719330991753,7.48611052,139.75,139.71,30.105809]
[1719330992067,100.0,139.75,139.71,30.105809]
[1719330992447,7.48511508,139.75,139.71,30.105809]
[1719330993254,0.17,139.74,139.71,30.105809]
[1719330993836,7.48511508,139.75,139.71,30.105809]
[1719330994041,100.0,139.77,139.71,30.105809]
[1719330994266,20.17,139.76,139.71,30.105809]
[1719330994650,7.48451668,139.77,139.72,6.5342]
[1719330995050,0.17,139.78,139.72,6.5342]
[1719330995654,7.48309544,139.8,139.72,6.5342]
[1719330995877,0.17,139.79,139.72,6.5342]
[1719330996647,0.34,139.79,139.72,6.5342]
[1719330998947,100.34,139.79,139.72,6.5342]
[1719330999773,7.48309544,139.8,139.72,6.5342]
[1719331000077,100.0,139.82,139.72,6.5342]
[1719331000243,107.48182756,139.82,139.72,6.5342]
[1719331000570,7.48182756,139.82,139.72,6.5342]
[1719331000868,7.48182756,139.82,139.74,21.4792]
[1719331001558,0.8646533,139.84,139.74,21.4792]
[1719331001747,100.8646533,139.84,139.74,21.4792]
[1719331002066,100.0,139.81,139.74,21.4792]
[1719331002247,107.1539,139.79,139.74,21.4792]
[1719331002441,100.0,139.79,139.74,21.4792]
[1719331002670,107.1527,139.81,139.74,21.4792]
[1719331002846,20.0,139.83,139.74,21.4792]
[1719331004066,0.17,139.82,139.74,21.4792]
[1719331004246,100.17,139.82,139.74,21.4792]
[1719331004855,0.17,139.82,139.74,21.4792]
[1719331005475,0.34,139.82,139.74,21.4792]
[1719331007069,100.0,139.81,139.74,21.4792]
[1719331007255,20.0,139.8,139.74,21.4792]
[1719331007465,0.17,139.79,139.74,21.4792]
[1719331009576,100.0,139.76,139.71,14.892609]
[1719331009972,20.34,139.75,139.71,14.892609]
[1719331010277,100.0,139.74,139.71,14.892609]
[1719331010659,0.34,139.73,139.71,14.892609]
[1719331012251,100.0,139.72,139.71,14.892609]
[1719331012678,120.34,139.72,139.71,14.892609]
[1719331018462,127.4971,139.72,139.71,14.892609]
[1719331018778,172.4971,139.72,139.71,14.892609]
[1719331019684,120.34,139.72,139.71,14.892609]
[1719331020483,127.4971,139.72,139.71,14.892609]
[1719331020784,172.4971,139.72,139.71,14.892609]
[1719331020979,215.6471,139.72,139.71,14.892609]
[1719331021990,172.4971,139.72,139.71,14.892609]
[1719331023689,215.5171,139.72,139.71,14.892609]
[1719331024675,238.8271,139.72,139.71,14.892609]
[1719331025382,120.0,139.72,139.71,14.892609]
[1719331025895,127.1571,139.72,139.71,14.892609]
[1719331027087,150.4671,139.72,139.71,14.712609]
[1719331027398,172.3271,139.72,139.71,14.712609]
[1719331029506,127.3271,139.72,139.71,14.712609]
[1719331030801,120.17,139.72,139.71,14.712609]
[1719331031188,127.3271,139.72,139.71,14.712609]
[1719331031378,100.0,139.74,139.71,14.712609]
[1719331031581,7.1557,139.75,139.71,14.712609]
[1719331031795,107.1552,139.76,139.71,14.712609]
[1719331032006,4.73871775,139.78,139.71,14.712609]
[1719331032007,7.1547,139.77,139.71,14.712609]
[1719331032186,7.1547,139.77,139.72,15.2396]
[1719331032581,107.1551,139.76,139.72,15.2396]
[1719331032786,114.63725642,139.76,139.72,15.2396]
[1719331033182,7.48215642,139.76,139.72,15.2396]
[1719331034426,107.1525,139.82,139.72,15.2396]
[1719331034606,7.1528,139.81,139.72,15.2396]
[1719331035190,107.1521,139.82,139.72,15.2396]
[1719331035403,100.0,139.8,139.72,15.2396]
[1719331036000,107.1522,139.82,139.72,15.2396]
[1719331036223,100.0,139.82,139.72,15.2396]
[1719331036380,20.0,139.81,139.72,15.2396]
[1719331036893,27.1525,139.81,139.72,15.2396]
[1719331037411,0.17,139.8,139.72,15.2396]
[1719331038201,107.3232,139.8,139.72,15.2396]
[1719331040016,100.17,139.8,139.72,15.2396]
[1719331041941,107.3231,139.8,139.72,15.2396]
[1719331043014,100.17,139.8,139.72,15.2396]
[1719331043610,0.17,139.8,139.72,15.2396]
[1719331043797,20.0,139.81,139.72,15.2396]
[1719331044395,107.1533,139.8,139.72,15.2396]
[1719331044594,7.154,139.79,139.72,15.2396]
[1719331044794,107.1532,139.8,139.72,15.2396]
[1719331045102,100.0,139.8,139.72,15.2396]
[1719331045404,7.64313422,139.79,139.72,15.2396]
[1719331046993,20.0,139.81,139.72,15.2396]
[1719331048026,100.0,139.82,139.74,15.8884]
[1719331052820,0.17,139.81,139.74,15.8884]
[1719331068622,7.75,139.8,139.75,7.75]
[1719331068824,7.92,139.79,139.74,15.8884]
[1719331069331,7.92,139.79,139.74,23.6384]
[1719331069729,0.17,139.79,139.75,7.75]
[1719331070125,107.47684261,139.82,139.75,7.75]
[1719331070126,7.75,139.8,139.75,7.75]
[1719331070442,7.92,139.81,139.76,7.75]
[1719331070730,7.92,139.81,139.74,15.8884]
[1719331074523,7.75,139.8,139.74,15.8884]
[1719331074710,107.75,139.8,139.74,15.8884]
[1719331074913,0.17,139.79,139.74,23.6384]
[1719331075111,7.75,139.77,139.74,15.8884]
[1719331075621,7.92,139.79,139.74,15.8884]
[1719331075833,0.17,139.79,139.75,7.75]
[1719331076817,7.75,139.81,139.75,7.75]
[1719331077136,107.92,139.8,139.74,23.6384]
[1719331077345,7.75,139.79,139.74,15.8884]
[1719331077549,7.75,139.79,139.74,23.6384]
[1719331077843,0.17,139.78,139.74,23.6384]
[1719331078051,7.75,139.79,139.74,23.6384]
[1719331078230,0.17,139.78,139.74,23.6384]
[1719331078627,100.11565267,139.83,139.74,16.57294247]
[1719331078843,107.75,139.81,139.76,7.75]
[1719331079219,0.17,139.8,139.76,7.75]
[1719331079748,7.92,139.8,139.75,7.75]
[1719331080121,7.92,139.8,139.74,15.8884]
[1719331080330,7.92,139.8,139.75,7.75]
[1719331081044,0.17,139.8,139.75,7.75]
[1719331081249,7.92,139.8,139.75,7.75]
[1719331082525,7.92,139.8,139.74,15.8884]
[1719331082851,7.92,139.8,139.75,7.75]
[1719331083224,7.92,139.8,139.74,15.8884]
[1719331083436,7.92,139.8,139.75,7.75]
[1719331083644,7.92,139.8,139.74,23.6384]
[1719331083832,15.38381067,139.8,139.74,23.6384]
[1719331084825,7.75,139.79,139.74,23.6384]
[1719331085230,107.75,139.79,139.74,15.8884]
[1719331085633,7.92,139.78,139.74,15.8884]
[1719331085841,0.17,139.78,139.74,15.8884]
[1719331086230,15.21381067,139.8,139.75,7.75]
[1719331086436,0.17,139.79,139.75,7.75]
[1719331087454,7.46381067,139.8,139.76,7.75]
[1719331087626,100.11565267,139.83,139.78,7.75]
[1719331087627,107.86565267,139.83,139.78,7.75]
[1719331087929,122.47860517,139.83,139.78,7.75]
[1719331088134,7.75,139.82,139.77,7.75]
[1719331089348,0.17,139.81,139.77,7.75]
[1719331089759,0.17,139.81,139.75,7.75]
[1719331089760,7.92,139.81,139.75,7.75]
[1719331090431,0.17,139.81,139.77,7.75]
[1719331091250,115.32710517,139.83,139.77,7.75]
[1719331091451,115.32710517,139.83,139.74,15.8884]
[1719331091452,107.75,139.81,139.76,7.75]
[1719331091952,0.17,139.8,139.76,7.75]
[1719331092858,0.17,139.8,139.75,7.75]
[1719331093883,7.92,139.8,139.75,7.75]
[1719331095045,0.17,139.8,139.75,7.75]
[1719331096379,7.75,139.82,139.74,16.56805575]
[1719331096547,0.17,139.81,139.77,7.75]
[1719331096740,107.92,139.81,139.76,7.75]
[1719331097181,107.92,139.81,139.74,16.56805575]
[1719331097668,107.75,139.79,139.74,15.8884]
[1719331097869,0.17,139.78,139.74,15.8884]
[1719331098268,107.75,139.79,139.74,15.8884]
[1719331098269,7.75,139.79,139.74,15.8884]
[1719331098476,7.75,139.8,139.74,23.6384]
[1719331098688,100.17,139.79,139.71,30.063409]
[1719331099002,115.3951895,139.79,139.73,7.75]
[1719331099214,7.75,139.78,139.73,7.75]
[1719331099490,0.17,139.77,139.73,7.75]
[1719331100075,0.17,139.77,139.71,30.063409]
[1719331100307,0.17,139.77,139.73,7.75]
[1719331100661,100.0,139.81,139.76,7.75]
[1719331100870,16.4368,139.82,139.72,31.0]
[1719331101091,100.11565267,139.83,139.72,31.0]
[1719331101092,107.47695641,139.81,139.77,7.75]
[1719331101588,107.47695641,139.81,139.76,7.75]
[1719331101776,115.22695641,139.81,139.76,7.75]
[1719331102184,0.17,139.8,139.76,7.75]
[1719331103398,0.17,139.8,139.75,7.75]
[1719331103695,0.17,139.8,139.72,31.0]
[1719331103696,7.75,139.77,139.72,7.75]
[1719331104071,0.17,139.76,139.72,7.75]
[1719331104393,100.0,139.8,139.74,7.75]
[1719331104696,20.17,139.79,139.75,7.75]
[1719331104859,0.17,139.78,139.75,7.75]
[1719331105058,0.17,139.78,139.74,7.75]
[1719331105710,7.47695641,139.81,139.76,7.75]
[1719331105872,20.17,139.8,139.76,7.75]
[1719331106074,127.92,139.8,139.72,0.66070801]
[1719331106602,127.92,139.8,139.74,7.75]
[1719331106808,7.75,139.79,139.71,30.063409]
[1719331107021,120.0,139.8,139.75,7.75]
[1719331107182,0.17,139.79,139.72,7.75]
[1719331107512,20.0,139.8,139.72,7.75]
[1719331107513,20.0,139.8,139.76,7.75]
[1719331107797,15.39695641,139.81,139.76,7.75]
[1719331108007,15.22695641,139.81,139.76,7.75]
[1719331108174,0.17,139.8,139.76,7.75]
[1719331108802,7.47695641,139.81,139.72,7.75]
[1719331109006,0.11565267,139.83,139.8,7.75]
[1719331109173,114.35384149,139.84,139.8,7.75]
[1719331109589,114.35384149,139.84,139.79,7.75]
[1719331110106,7.75,139.82,139.74,6.3116]
[1719331110406,7.75,139.82,139.77,7.75]
[1719331110985,0.17,139.81,139.77,7.75]
[1719331111777,0.17,139.81,139.76,7.75]
[1719331112467,0.17,139.81,139.74,6.3116]
[1719331112691,7.75,139.8,139.71,36.513009]
[1719331112876,7.75,139.8,139.74,7.75]
[1719331113080,7.75,139.8,139.75,7.75]
[1719331113301,0.17,139.81,139.75,7.75]
[1719331113302,7.92,139.81,139.75,7.75]
[1719331113802,0.17,139.81,139.75,7.75]
[1719331114009,27.92,139.81,139.75,7.75]
[1719331114706,7.75,139.8,139.75,7.75]
[1719331115013,7.75,139.79,139.74,7.75]
[1719331115997,7.75,139.79,139.73,7.75]
[1719331116786,120.17,139.78,139.71,30.063409]
[1719331116991,7.75,139.76,139.71,30.063409]
[1719331119496,7.75,139.77,139.71,30.063409]
[1719331119705,20.0,139.76,139.71,37.813409]
[1719331119905,0.17,139.75,139.71,37.813409]
[1719331122395,0.17,139.75,139.71,14.712609]
[1719331125421,0.17,139.75,139.71,22.462609]
[1719331125717,27.75,139.76,139.73,15.6334]
[1719331125718,20.0,139.76,139.73,15.6334]
[1719331125932,31.7748623,139.84,139.73,15.6334]
[1719331125933,7.75,139.8,139.75,7.75]
[1719331126715,15.21977268,139.81,139.73,15.6334]
[1719331127036,15.21977268,139.81,139.75,7.75]
[1719331127331,15.21977268,139.81,139.76,7.75]
[1719331127506,7.86565267,139.83,139.77,7.75]
[1719331127704,35.32463744,139.83,139.77,7.75]
[1719331128435,27.57463744,139.83,139.78,7.75]
[1719331128644,35.32463744,139.83,139.78,7.75]
[1719331129059,27.57463744,139.83,139.78,7.75]
[1719331129340,7.75,139.81,139.76,7.75]
[1719331129509,7.75,139.81,139.74,6.1351]
[1719331129707,7.75,139.81,139.76,7.75]
[1719331130844,7.75,139.79,139.73,15.6334]
[1719331131012,7.92,139.78,139.73,23.3834]
[1719331131213,7.92,139.78,139.73,15.6334]
[1719331131437,7.92,139.78,139.73,23.3834]
[1719331131649,0.17,139.78,139.74,7.75]
[1719331132138,7.75,139.79,139.74,7.75]
[1719331132347,0.17,139.78,139.74,7.75]
[1719331135221,0.17,139.78,139.73,15.6334]
[1719331135544,0.17,139.78,139.74,7.75]
[1719331135748,0.17,139.78,139.73,23.3834]
[1719331136250,7.75,139.77,139.71,20.753909]
[1719331136445,7.75,139.77,139.72,7.75]
[1719331136624,7.75,139.78,139.73,7.75]
[1719331136945,7.75,139.78,139.71,20.753909]
[1719331137131,7.75,139.78,139.73,7.75]
[1719331137338,0.17,139.77,139.72,7.75]
[1719331137846,0.17,139.77,139.73,7.75]
[1719331140052,0.17,139.77,139.72,7.75]
[1719331140552,107.92,139.77,139.71,20.753909]
[1719331140726,7.75,139.76,139.71,28.503909]
[1719331140924,100.17,139.77,139.71,28.503909]
[1719331140925,107.92,139.77,139.71,28.503909]
[1719331141126,7.75,139.74,139.71,14.712609]
[1719331141460,0.17,139.73,139.71,14.712609]
[1719331142722,7.75,139.75,139.71,14.712609]
[1719331144884,7.92,139.76,139.71,22.462609]
[1719331145167,20.0,139.75,139.71,22.462609]
[1719331146560,20.17,139.76,139.71,22.462609]
[1719331146771,20.0,139.76,139.71,22.462609]
[1719331146948,0.17,139.75,139.71,22.462609]
[1719331150269,7.5194533,139.84,139.73,7.75]
[1719331150270,7.75,139.79,139.73,7.75]
[1719331150472,14.9037,139.79,139.73,7.75]
[1719331150767,127.75,139.78,139.73,7.75]
[1719331151148,100.0,139.76,139.73,7.75]
[1719331151338,7.92,139.75,139.71,14.712609]
[1719331152377,100.0,139.72,139.71,14.712609]
[1719331152544,20.0,139.72,139.71,14.712609]
[1719331152742,27.92,139.72,139.71,14.712609]
[1719331153878,35.0771,139.72,139.71,14.712609]
[1719331154877,20.17,139.72,139.71,14.712609]
[1719331155174,27.92,139.72,139.71,14.712609]
[1719331157682,20.17,139.72,139.71,14.712609]
[1719331158980,0.17,139.72,139.71,14.712609]
[1719331159284,7.92,139.72,139.71,14.712609]
[1719331161081,0.17,139.72,139.71,14.712609]
[1719331162185,27.45371268,139.74,139.71,14.712609]
[1719331162380,7.92,139.73,139.71,14.712609]
[1719331162885,107.75,139.72,139.71,14.712609]
[1719331163180,7.75,139.73,139.71,14.712609]
[1719331163389,27.45371268,139.74,139.71,14.712609]
[1719331163566,27.75,139.74,139.71,14.712609]
[1719331164072,7.75,139.73,139.71,14.712609]
[1719331164794,7.92,139.72,139.71,14.712609]
[1719331165358,115.0771,139.72,139.71,14.712609]
[1719331166477,107.92,139.72,139.71,14.712609]
[1719331168100,122.8271,139.72,139.71,14.712609]
[1719331168301,135.67,139.72,139.71,14.712609]
[1719331172301,142.8271,139.72,139.71,14.712609]
[1719331174186,150.29038378,139.72,139.71,14.712609]
[1719331174805,142.54038378,139.72,139.71,14.712609]
[1719331175298,180.51496572,139.72,139.71,14.712609]
[1719331177399,180.51496572,139.72,139.64,22.9221]
[1719331177400,100.0,139.69,139.64,16.444]
[1719331177577,7.75,139.66,139.64,16.444]
[1719331181411,7.92,139.65,139.61,21.1924]
[1719331181801,0.17,139.65,139.61,28.9424]
[1719331182225,7.92,139.65,139.61,21.1924]
[1719331182395,7.75,139.63,139.61,15.1175]
[1719331184315,7.75,139.63,139.58,7.75]
[1719331184525,7.92,139.62,139.57,22.4985]
[1719331184714,7.92,139.62,139.57,30.2485]
[1719331184894,7.92,139.62,139.57,22.4985]
[1719331185093,7.92,139.62,139.57,30.2485]
[1719331185323,7.42,139.62,139.57,30.2485]
[1719331185817,7.75,139.61,139.57,22.4985]
[1719331185991,7.75,139.6,139.57,15.9138]
[1719331186410,7.75,139.59,139.57,15.9138]
[1719331186721,7.75,139.58,139.54,21.8902]
[1719331187105,7.75,139.58,139.54,15.5197]
[1719331187312,7.75,139.57,139.54,15.5197]
[1719331187698,7.75,139.58,139.54,15.5197]
[1719331188320,0.17,139.59,139.54,15.5197]
[1719331188321,7.75,139.57,139.54,15.5197]
[1719331188904,100.17,139.59,139.54,15.5197]
[1719331189208,7.75,139.57,139.54,15.5197]
[1719331190013,0.17,139.59,139.54,15.5197]
[1719331190325,27.92,139.6,139.55,7.75]
[1719331190695,27.75,139.6,139.55,7.75]
[1719331191022,115.731,139.63,139.55,7.75]
[1719331191023,7.75,139.63,139.57,7.75]
[1719331192200,100.0,139.65,139.57,7.75]
[1719331192399,7.75,139.63,139.57,10.33608806]
[1719331193323,7.75,139.62,139.57,7.75]
[1719331194522,7.75,139.62,139.56,16.73638837]
[1719331195520,7.75,139.62,139.57,7.75]
[1719331195727,100.17,139.63,139.57,7.75]
[1719331195928,7.75,139.62,139.57,7.75]
[1719331196313,100.17,139.63,139.57,7.75]
[1719331196620,7.92,139.63,139.57,7.75]
[1719331196821,100.0,139.65,139.56,8.98638837]
[1719331197024,6.97458194,139.67,139.58,2.58616803]
[1719331197025,106.97458194,139.67,139.58,2.58616803]
[1719331197228,7.75,139.66,139.61,7.75]
[1719331197826,100.0,139.69,139.62,7.75]
[1719331198042,100.0,139.67,139.58,2.58616803]
[1719331198320,7.75,139.65,139.58,2.58616803]
[1719331198496,7.75,139.66,139.6,7.75]
[1719331198899,100.0,139.67,139.58,2.58616803]
[1719331199098,7.75,139.66,139.6,7.75]
[1719331199497,7.75,139.64,139.59,7.75]
[1719331199696,100.0,139.67,139.6,10.33579751]
[1719331199893,27.75,139.66,139.61,7.75]
[1719331200721,7.46352348,139.68,139.62,2.58675463]
[1719331200931,7.75,139.67,139.62,7.75]
[1719331201138,7.46352348,139.68,139.62,22.7812]
[1719331201722,15.21352348,139.68,139.62,22.7812]
[1719331201926,7.75,139.67,139.62,22.7812]
[1719331204323,7.75,139.67,139.62,15.0312]
[1719331204705,7.92,139.68,139.63,7.75]
[1719331205405,0.17,139.68,139.63,7.75]
[1719331205605,6.97458194,139.69,139.65,7.75]
[1719331205821,255.4,139.73,139.67,7.75]
[1719331206123,255.4,139.73,139.69,7.75]
[1719331208298,255.4,139.73,139.69,6.25]
[1719331208522,255.4,139.73,139.68,23.5554]
[1719331208724,255.4,139.73,139.68,15.8054]
[1719331208935,7.1575,139.72,139.68,15.8054]
[1719331209302,0.17,139.71,139.68,15.8054]
[1719331209530,7.1598,139.67,139.65,15.046]
[1719331209716,7.1591,139.69,139.57,23.28]
[1719331209899,7.1591,139.69,139.58,22.6188]
[1719331210099,107.1591,139.69,139.58,22.6188]
[1719331210426,0.17,139.68,139.58,22.6188]
[1719331214032,0.17,139.69,139.58,22.6188]
[1719331214223,100.0,139.66,139.58,22.6188]
[1719331214403,0.17,139.65,139.58,22.6188]
[1719331214608,100.0,139.64,139.58,16.3602]
[1719331215059,0.17,139.63,139.58,16.3602]
[1719331215536,20.0,139.63,139.58,16.3602]
[1719331215736,0.17,139.62,139.58,16.3602]
[1719331216816,100.0,139.66,139.58,16.3602]
[1719331217011,20.17,139.65,139.58,16.3602]
[1719331217205,0.17,139.65,139.58,16.3602]
[1719331217409,20.0,139.67,139.58,16.3602]
[1719331217645,20.0,139.67,139.59,6.2972]
[1719331217934,20.0,139.69,139.59,6.2972]
[1719331218138,100.0,139.72,139.61,23.28]
[1719331218309,277.7936,139.73,139.61,23.28]
[1719331218521,100.0,139.72,139.61,23.28]
[1719331218739,7.47976827,139.72,139.61,23.28]
[1719331218926,7.47976827,139.72,139.62,0.17]
[1719331219238,107.47976827,139.72,139.61,23.28]
[1719331219447,107.47976827,139.72,139.6,0.17]
[1719331219621,7.47976827,139.72,139.61,15.2613]
[1719331219816,255.4,139.73,139.61,15.2613]
[1719331220132,20.0,139.72,139.63,23.28]
[1719331221625,20.0,139.72,139.62,6.2632]
[1719331221826,100.0,139.71,139.62,6.2632]
[1719331222036,0.17,139.7,139.62,6.2632]
[1719331222627,20.0,139.72,139.62,6.2632]
[1719331222934,20.0,139.72,139.63,23.45]
[1719331223143,255.4,139.73,139.63,23.45]
[1719331223512,255.4,139.73,139.65,16.3647]
[1719331223713,255.4,139.73,139.66,1.4357188]
[1719331224218,100.0,139.76,139.66,1.4357188]
[1719331224815,114.63226874,139.76,139.66,1.4357188]
[1719331225143,107.47706874,139.76,139.66,1.4357188]
[1719331225644,7.47706874,139.76,139.66,24.7157188]
[1719331226150,107.1542,139.78,139.66,23.28]
[1719331226446,107.48023246,139.78,139.68,15.842]
[1719331227444,7.48023246,139.78,139.68,37.362]
[1719331227752,100.0,139.83,139.7,45.7894]
[1719331227931,100.0,139.83,139.71,0.17]
[1719331228130,107.1517,139.83,139.71,0.17]
[1719331228335,7.1522,139.82,139.7,45.7894]
[1719331229052,107.1517,139.83,139.7,45.7894]
[1719331229855,0.17,139.82,139.7,45.7894]
[1719331230668,0.17,139.82,139.7,22.5094]
[1719331230958,100.0,139.78,139.7,22.5094]
[1719331231337,0.17,139.77,139.7,22.5094]
[1719331232733,100.0,139.8,139.71,1.43649215]
[1719331233032,100.0,139.76,139.7,22.5094]
[1719331233229,107.1555,139.76,139.7,16.2445]
[1719331233541,7.1557,139.75,139.7,16.2445]
[1719331234153,0.17,139.74,139.7,16.2445]
[1719331234455,0.17,139.75,139.7,16.2445]
[1719331234626,100.0,139.73,139.67,6.5913]
[1719331234824,0.17,139.72,139.67,6.5913]
[1719331237340,100.0,139.76,139.67,6.5913]
[1719331237851,100.0,139.8,139.67,6.5913]
[1719331238160,100.0,139.8,139.68,15.3388]
[1719331238453,100.0,139.76,139.68,15.3388]
[1719331238665,100.0,139.78,139.68,15.3388]
[1719331239154,0.17,139.77,139.68,15.3388]
[1719331239631,100.0,139.78,139.68,15.3388]
[1719331239829,107.1543,139.78,139.68,15.3388]
[1719331240632,100.0,139.75,139.68,15.3388]
[1719331240853,0.17,139.74,139.68,15.3388]
[1719331241655,100.0,139.73,139.68,15.3388]
[1719331241833,0.17,139.72,139.68,15.3388]
[1719331243671,20.0,139.74,139.68,15.3388]
[1719331243857,0.17,139.73,139.68,15.3388]
[1719331244051,130.4343,139.78,139.68,15.3388]
[1719331244255,100.0,139.76,139.68,15.3388]
[1719331244632,107.1551,139.76,139.68,15.3388]
[1719331244863,100.0,139.74,139.68,15.3388]
[1719331245366,0.17,139.73,139.68,15.3388]
[1719331247468,20.17,139.73,139.68,15.3388]
[1719331247958,100.0,139.72,139.68,15.3388]
[1719331248361,0.17,139.71,139.68,15.3388]
[1719331248871,0.17,139.71,139.65,15.684]
[1719331249168,100.0,139.7,139.65,15.684]
[1719331249368,0.17,139.69,139.65,15.684]
[1719331250768,20.0,139.73,139.65,15.684]
[1719331252242,0.17,139.72,139.65,15.684]
[1719331252942,100.0,139.7,139.65,15.684]
[1719331253372,0.17,139.69,139.65,15.684]
[1719331253748,100.0,139.67,139.61,15.5964]
[1719331254152,0.17,139.66,139.61,15.5964]
[1719331255969,20.17,139.66,139.61,15.5964]
[1719331256770,20.0,139.66,139.61,15.5964]
[1719331256948,0.17,139.67,139.61,15.5964]
[1719331257142,0.17,139.67,139.61,17.02733395]
[1719331257457,100.0,139.67,139.61,15.5964]
[1719331257648,20.17,139.66,139.61,15.5964]
[1719331259179,0.17,139.66,139.61,15.5964]
[1719331259342,20.17,139.66,139.61,15.5964]
[1719331259776,0.17,139.66,139.61,15.5964]
[1719331260373,100.0,139.65,139.61,15.5964]
[1719331260564,100.0,139.67,139.61,15.5964]
[1719331260875,100.0,139.69,139.61,15.5964]
[1719331261063,15.3173,139.72,139.61,15.5964]
[1719331261064,100.0,139.67,139.61,15.5964]
[1719331261268,7.46383073,139.68,139.61,15.5964]
[1719331261449,20.0,139.67,139.61,15.5964]
[1719331262348,100.0,139.71,139.61,15.5964]
[1719331262975,107.1634,139.6,139.55,16.3876]
[1719331263271,16.5787,139.64,139.51,23.28]
[1719331263272,100.0,139.57,139.51,16.3876]
[1719331263504,107.1652,139.57,139.51,16.3876]
[1719331263658,0.17,139.56,139.51,16.3876]
[1719331264254,20.17,139.56,139.51,16.3876]
[1719331264490,100.0,139.55,139.51,16.3876]
[1719331264662,20.0,139.54,139.48,6.1492]
[1719331264861,0.17,139.53,139.48,6.1492]
[1719331265364,20.0,139.54,139.48,6.1492]
[1719331265572,100.0,139.55,139.48,6.1492]
[1719331265780,27.3368,139.54,139.48,6.1492]
[1719331265973,107.167,139.53,139.47,15.9192]
[1719331266172,27.1675,139.52,139.47,15.9192]
[1719331266389,0.17,139.51,139.47,15.9192]
[1719331266967,7.3383,139.51,139.47,15.9192]
[1719331267287,107.3379,139.51,139.44,6.6217]
[1719331267458,20.0,139.5,139.44,6.6217]